bitfinex-derivatives/quotes_ETHF0:USTF0_20250404
["timestamp","ask_amount","ask_price","bid_price","bid_amount"]
[1743774746865,2.53963573,1787.0,1786.8,9.2414]
[1743774747067,1.11957,1786.9,1786.8,8.1218]
[1743774747270,1.11963,1786.8,1786.7,0.00838573]
[1743774748662,2.65773,1786.8,1786.7,0.00838573]
[1743774749062,1.5381,1786.8,1786.7,0.00838573]
[1743774749271,2.65773,1786.8,1786.7,0.00838573]
[1743774750163,1.11982,1786.5,1786.4,40.8]
[1743774751064,5.07562,1786.5,1786.4,40.8]
[1743774751264,2.79979,1786.4,1785.9,1.12016]
[1743774751465,1.4558,1786.3,1785.6,0.73778762]
[1743774751662,1.12025,1785.8,1785.7,0.11200089]
[1743774751970,1.12025,1785.8,1785.7,40.91200089]
[1743774752172,1.12025,1785.8,1785.7,0.11200089]
[1743774752370,5.7078,1785.8,1785.6,5.73e-06]
[1743774752570,2.57612,1785.7,1785.6,5.73e-06]
[1743774753075,9.96212,1785.7,1785.6,5.73e-06]
[1743774753577,11.22632001,1785.7,1785.6,5.73e-06]
[1743774753776,17.05432001,1785.7,1785.6,5.73e-06]
[1743774753973,2.80144,1785.3,1784.5,1.12105]
[1743774754183,6.00957,1785.1,1784.5,1.12105]
[1743774754376,3.2078,1784.9,1784.4,1.4517]
[1743774754576,1.12103,1784.6,1784.5,40.8]
[1743774754976,1.12098,1784.7,1784.5,40.8]
[1743774755276,1.4387,1784.6,1784.5,40.8]
[1743774755878,1.4387,1784.6,1784.5,41.92107]
[1743774756177,1.4387,1784.6,1784.5,40.8]
[1743774756377,1.4387,1784.6,1784.5,41.92107]
[1743774756674,0.00838573,1784.7,1784.6,1.12101]
[1743774756879,0.00838573,1784.7,1784.6,5.78051]
[1743774757072,0.00838573,1784.7,1784.6,8.28051]
[1743774757279,4.6465,1785.1,1784.8,1.12085]
[1743774757574,2.55944,1785.1,1784.9,43.32521]
[1743774758280,1.12076,1785.0,1784.9,42.2044]
[1743774758577,2.65616,1785.0,1784.9,42.2044]
[1743774758972,1.5354,1785.0,1784.9,43.32522]
[1743774759174,0.00838573,1785.2,1784.9,42.2044]
[1743774759475,1.12901573,1785.2,1785.0,4.32851]
[1743774759785,0.00838573,1785.2,1785.0,2.52513]
[1743774759980,0.00838573,1785.2,1785.1,1.12069]
[1743774760281,0.00838573,1785.2,1784.9,40.8]
[1743774760484,1.12076,1785.0,1784.9,40.8]
[1743774760779,1.50508573,1785.2,1784.9,40.8]
[1743774760972,0.00838573,1785.2,1785.1,1.12069]
[1743774761281,0.00838573,1785.2,1785.0,3.2078]
[1743774761474,1.12905573,1785.2,1784.9,43.36077]
[1743774761785,0.00838573,1785.2,1784.9,43.36078]
[1743774761973,2.61744,1785.1,1784.9,43.36079]
[1743774762178,2.61744,1785.1,1784.9,41.92079]
[1743774762476,1.4967,1785.1,1785.0,1.12076]
[1743774762677,2.61741,1785.1,1784.9,43.36077]
[1743774762879,1.12906573,1785.2,1785.0,1.12073]
[1743774763087,0.00838573,1785.2,1785.1,2.63319]
[1743774763974,0.00838573,1785.2,1785.1,1.5125]
[1743774764179,0.00838573,1785.2,1785.0,1.12071]
[1743774764180,1.12903573,1785.2,1785.0,1.12071]
[1743774764477,1.12903573,1785.2,1785.1,1.12069]
[1743774764478,0.00838573,1785.2,1785.1,1.12069]
[1743774764780,0.00838573,1785.2,1785.1,4.32849]
[1743774765182,0.00838573,1785.2,1785.1,1.12069]
[1743774765384,0.00838573,1785.2,1785.1,4.32849]
[1743774765677,0.00838573,1785.2,1785.1,6.82849]
[1743774766282,1.12038,1785.6,1785.1,5.7078]
[1743774766487,1.12038,1785.6,1785.4,1.12046]
[1743774766488,2.54818,1785.6,1785.4,1.12046]
[1743774766679,1.12044,1785.5,1785.4,1.12046]
[1743774766876,1.4278,1785.5,1785.3,3.2078]
[1743774767184,1.4278,1785.5,1785.3,4.32835]
[1743774767376,1.12051,1785.4,1785.3,4.7255]
[1743774767581,1.4278,1785.5,1785.2,4.835]
[1743774767781,1.12051,1785.4,1785.2,1.12059]
[1743774767988,1.4278,1785.3,1785.2,1.12059]
[1743774768285,2.54837,1785.3,1785.0,9.5535]
[1743774768483,1.12067,1785.2,1785.0,4.7255]
[1743774768683,1.4278,1785.2,1785.1,1.12069]
[1743774768879,2.80112,1785.5,1785.1,1.12066]
[1743774769084,1.4278,1785.4,1785.1,1.12066]
[1743774769582,0.00838573,1785.6,1785.5,1.12044]
[1743774769782,1.11995,1786.3,1786.1,1.12005]
[1743774770084,1.12014,1786.0,1785.8,5.94922]
[1743774770282,1.1201,1786.1,1785.9,1.12017]
[1743774770587,1.12002,1786.2,1786.0,41.92013]
[1743774770778,1.12007,1786.1,1786.0,40.8]
[1743774770982,0.00838573,1786.3,1786.1,1.12005]
[1743774771184,1.12835573,1786.3,1786.2,1.12]
[1743774771487,1.12832573,1786.3,1786.2,1.12]
[1743774771684,1.12,1786.2,1786.1,5.86122]
[1743774771884,0.00838573,1786.3,1786.2,1.12]
[1743774772182,0.00838573,1786.3,1786.2,2.6534]
[1743774774386,0.00838573,1786.3,1786.2,5.1534]
[1743774774793,0.7269,1787.1,1786.3,2.79986]
[1743774774983,1.11953,1787.0,1786.8,4.32739]
[1743774775189,1.84638,1787.1,1786.9,1.11953]
[1743774775490,1.84638,1787.1,1787.0,1.1195]
[1743774775694,0.7269,1787.1,1787.0,4.3273]
[1743774775879,0.00838573,1787.2,1787.1,1.11943]
[1743774776079,0.00838573,1787.2,1787.0,3.2078]
[1743774776291,0.00838573,1787.2,1787.1,1.11944]
[1743774776789,0.00838573,1787.2,1787.1,41.91944]
[1743774777191,0.00838573,1787.2,1787.1,40.8]
[1743774777689,0.00838573,1787.2,1787.0,9.13428]
[1743774777992,1.11944,1787.1,1787.0,3.2078]
[1743774778689,1.1195,1787.0,1786.9,0.00838573]
[1743774779088,2.59575,1787.1,1786.9,0.00838573]
[1743774779287,1.1195,1787.0,1786.9,1.12795573]
[1743774779486,1.1195,1787.0,1786.9,0.00838573]
[1743774780089,1.4763,1787.1,1786.9,1.12791573]
[1743774780298,0.00838573,1787.2,1787.1,1.11944]
[1743774780694,1.12776573,1787.2,1787.1,3.2078]
[1743774780996,0.00838573,1787.2,1787.0,1.11947]
[1743774781183,1.12779573,1787.2,1787.0,2.57457]
[1743774781389,1.1195,1787.1,1786.9,4.33570573]
[1743774781693,0.00838573,1787.2,1787.0,1.11948]
[1743774781893,1.1195,1787.1,1787.0,1.1195]
[1743774782090,0.00838573,1787.2,1787.1,1.11944]
[1743774782391,3.7678,1788.3,1787.7,1.119]
[1743774782693,3.7678,1788.3,1787.2,2.79832]
[1743774782694,1.4039,1788.1,1788.0,1.11888]
[1743774782891,1.4039,1788.1,1788.0,41.91888]
[1743774783196,3.7678,1788.5,1788.0,41.91888]
[1743774783197,4.88639,1788.5,1788.3,1.11864]
[1743774783397,19.21945362,1788.7,1788.5,1.11856]
[1743774783689,19.21945362,1788.7,1788.6,4.3263]
[1743774784995,19.21945362,1788.7,1788.5,1.4551]
[1743774785297,21.74706362,1788.7,1788.5,1.4551]
[1743774785595,1.11868,1788.5,1788.4,4.796]
[1743774785896,1.11864,1788.6,1788.4,1.11873]
[1743774786088,1.11871,1788.5,1788.3,4.32658]
[1743774786292,1.11865,1788.6,1788.3,4.32658]
[1743774786494,1.11869,1788.5,1788.4,1.4371]
[1743774786792,1.11866,1788.6,1788.4,2.55584]
[1743774786998,1.11865,1788.6,1788.4,2.55581]
[1743774787193,1.11868,1788.5,1788.4,1.4371]
[1743774787496,1.41738573,1788.8,1788.4,6.2301]
[1743774787686,1.11855,1788.7,1788.5,4.32644]
[1743774787890,3.2078,1788.7,1788.4,4.793]
[1743774788093,1.11868,1788.5,1788.4,4.793]
[1743774788289,4.6842,1788.6,1788.2,6.3195]
[1743774788592,1.1188,1788.3,1788.2,4.793]
[1743774789095,1.11893,1788.1,1788.0,1.5265]
[1743774789396,1.4764,1788.4,1787.9,0.00838573]
[1743774789603,1.11899,1788.0,1787.9,0.00838573]
[1743774789805,1.11897,1788.1,1788.0,1.11899]
[1743774789999,1.11897,1788.1,1787.9,4.74268573]
[1743774790306,1.4764,1788.2,1787.9,4.74268573]
[1743774790594,1.11884,1788.3,1787.9,4.74268573]
[1743774790800,1.11886,1788.2,1788.1,4.32667]
[1743774790997,1.11877,1788.4,1788.1,7.9998]
[1743774791195,1.11877,1788.4,1788.2,2.65582]
[1743774791396,1.3931,1788.5,1788.2,2.65582]
[1743774791597,2.51179,1788.5,1788.3,3.2078]
[1743774791793,1.11874,1788.4,1788.3,3.2078]
[1743774791993,1.3931,1788.5,1788.4,1.11874]
[1743774792199,1.3931,1788.7,1788.6,1.11861]
[1743774792595,2.5117,1788.7,1788.5,4.32643]
[1743774792803,1.12690573,1788.8,1788.6,2.65561]
[1743774792998,0.00838573,1788.8,1788.7,2.65555]
[1743774793204,1.12687573,1788.8,1788.7,2.65555]
[1743774793406,0.00838573,1788.8,1788.7,2.65555]
[1743774793700,0.00838573,1788.8,1788.7,40.8]
[1743774793701,1.12687573,1788.8,1788.7,40.8]
[1743774793901,1.41848573,1788.8,1788.4,4.792]
[1743774794101,1.41848573,1788.8,1788.5,1.11863]
[1743774794291,1.41848573,1788.8,1788.4,4.792]
[1743774794499,1.41848573,1788.8,1788.6,1.11859]
[1743774794701,1.41848573,1788.8,1788.7,1.11855]
[1743774795003,1.11832,1789.1,1788.9,1.1184]
[1743774795197,1.11832,1789.1,1788.8,1.5263]
[1743774795397,1.11836,1789.0,1788.9,40.8]
[1743774795999,1.4101,1789.1,1788.9,40.8]
[1743774796194,1.41569057,1789.1,1789.0,4.32616]
[1743774796399,1.3138,1789.6,1789.1,2.79576]
[1743774796695,1.5081,1789.7,1789.4,3.2078]
[1743774796895,24.78614841,1790.6,1789.6,3.2078]
[1743774797097,21.57834841,1790.6,1790.4,1.11749]
[1743774797311,21.57834841,1790.6,1790.4,9.11629]
[1743774797500,21.57834841,1790.6,1790.4,5.90849]
[1743774797693,21.57834841,1790.6,1790.4,4.791]
[1743774797894,21.57834841,1790.6,1790.3,4.79938573]
[1743774798308,1.11749,1790.4,1790.3,4.79938573]
[1743774798501,2.62559,1790.4,1790.3,0.00838573]
[1743774798915,1.11768,1790.1,1790.0,4.791]
[1743774799211,4.7159,1790.4,1790.0,4.791]
[1743774799409,1.11775,1790.2,1790.0,4.791]
[1743774799705,1.11776,1790.2,1790.0,4.791]
[1743774799902,1.5004,1790.1,1790.0,5.90885]
[1743774800099,2.61819,1790.1,1790.0,4.791]
[1743774800304,5.82599,1790.1,1790.0,4.791]
[1743774800508,2.61821,1790.1,1789.9,1.12627573]
[1743774800812,1.5004,1790.1,1789.9,0.00838573]
[1743774801107,0.00838572,1790.3,1790.2,1.11772]
[1743774801307,0.00838572,1790.3,1790.2,8.40672]
[1743774801503,0.00838572,1790.3,1790.2,5.90672]
[1743774801708,0.00838572,1790.3,1790.2,8.40672]
[1743774802509,8.62113,1791.0,1790.2,8.40672]
[1743774802510,3.767,1791.2,1790.3,2.79407]
[1743774802711,3.909,1791.4,1791.2,1.11706]
[1743774802907,4.32481,1791.4,1791.0,5.90519]
[1743774803107,5.76803,1791.4,1791.0,5.90519]
[1743774803312,1.1171,1791.2,1791.1,40.8]
[1743774803615,3.2078,1792.0,1791.1,49.9738]
[1743774803818,3.2078,1792.2,1792.0,1.11658]
[1743774804116,0.11159468,1792.2,1792.1,5.90454]
[1743774804517,0.7007,1792.8,1792.1,10.4958]
[1743774804717,7.1064,1793.1,1792.5,40.8]
[1743774804718,1.4432,1792.9,1792.5,40.8]
[1743774805118,3.2078,1792.7,1792.5,40.8]
[1743774805325,4.651,1792.9,1792.5,40.8]
[1743774805519,1.4432,1792.9,1792.5,40.8]
[1743774805721,0.72,1793.1,1792.8,1.1161]
[1743774805920,0.72,1793.1,1792.5,45.4363]
[1743774806129,4.6693,1793.0,1792.5,42.2285]
[1743774806422,3.2078,1792.8,1792.5,40.8]
[1743774806624,4.32403,1792.6,1792.5,40.8]
[1743774807025,3.2078,1792.6,1792.5,40.8]
[1743774807220,3.2078,1792.6,1792.1,1.4285]
[1743774807426,1.4615,1792.5,1792.4,1.11635]
[1743774807628,1.4615,1792.5,1792.3,1.11637]
[1743774808032,1.4615,1792.5,1792.1,42.2285]
[1743774808033,1.4615,1792.5,1792.2,1.11645]
[1743774808439,2.57782,1792.5,1792.1,1.11652]
[1743774808631,1.4615,1792.5,1791.9,4.79438573]
[1743774808827,1.11645,1792.3,1791.9,5.91100573]
[1743774809027,4.727,1792.2,1791.9,0.00838573]
[1743774809234,5.84349,1792.2,1791.9,0.00838573]
[1743774809434,1.5192,1792.2,1791.9,1.12501573]
[1743774809641,1.5192,1792.2,1791.9,1.12502573]
[1743774809928,1.5192,1792.2,1792.0,1.11659]
[1743774810134,3.9542,1792.5,1791.9,3.21618573]
[1743774810325,3.9542,1792.5,1792.2,1.11645]
[1743774810535,3.9542,1792.5,1792.1,1.11649]
[1743774810727,3.2078,1792.3,1792.0,6.1901]
[1743774810930,1.5192,1792.2,1792.0,4.783]
[1743774811133,0.7464,1792.5,1792.0,4.783]
[1743774811436,1.5192,1792.6,1792.1,4.6149]
[1743774811635,1.5192,1792.6,1792.0,4.783]
[1743774811831,1.5192,1792.6,1792.0,6.2604]
[1743774812028,2.63545,1792.6,1792.0,6.2604]
[1743774812232,1.5192,1792.6,1792.3,1.11641]
[1743774812530,1.5192,1792.6,1792.4,40.8]
[1743774812733,1.11637,1792.4,1791.9,0.00838573]
[1743774812927,4.3244,1792.0,1791.9,0.00838573]
[1743774813125,1.11698,1791.4,1791.3,0.43992127]
[1743774813331,3.2078,1791.5,1791.0,42.2774]
[1743774813637,4.792,1791.7,1791.0,42.2774]
[1743774813638,3.2078,1791.3,1791.0,40.8]
[1743774813937,2.51213,1791.2,1791.0,40.8]
[1743774814235,1.395,1791.2,1791.1,1.11716]
[1743774814631,1.395,1791.2,1791.0,41.91719]
[1743774814833,1.395,1791.2,1791.0,40.8]
[1743774815035,1.395,1791.2,1791.0,41.9172]
[1743774815334,1.395,1791.2,1791.0,40.8]
[1743774815528,1.395,1791.2,1791.0,41.9172]
[1743774815728,0.5584,1791.6,1791.1,10.78171]
[1743774815932,1.81567,1791.8,1791.5,1.11691]
[1743774816138,0.6989,1791.8,1791.1,4.6883]
[1743774816329,1.117,1791.4,1791.1,1.11715]
[1743774816535,3.7662,1791.7,1791.2,3.2078]
[1743774816731,6.55831,1791.7,1791.0,45.4883]
[1743774816935,1.11707,1791.3,1791.0,46.6055]
[1743774817240,0.5584,1791.7,1791.3,1.11702]
[1743774817444,3.7662,1791.7,1791.3,1.11701]
[1743774817640,1.11683,1791.7,1791.2,8.0318]
[1743774817840,1.11679,1791.7,1791.4,1.11698]
[1743774818036,3.7662,1791.7,1791.3,2.51213]
[1743774818337,1.11698,1791.4,1791.3,1.3951]
[1743774818528,1.11685,1791.6,1791.3,2.51212]
[1743774818728,1.11688,1791.6,1791.4,1.11697]
[1743774818933,2.0156,1791.7,1791.3,1.3951]
[1743774819142,1.4572,1791.7,1791.3,1.3951]
[1743774819439,2.57404,1791.7,1791.4,1.11696]
[1743774819635,1.4572,1791.7,1791.6,1.11685]
[1743774820041,3.7662,1792.1,1791.5,3.2078]
[1743774820337,0.7389,1792.1,1792.0,1.1166]
[1743774820537,0.7389,1792.1,1791.8,5.9247]
[1743774820730,1.3899,1792.0,1791.9,1.12504573]
[1743774820929,0.7389,1792.1,1792.0,1.1166]
[1743774821133,1.11621,1792.7,1792.0,1.1166]
[1743774821436,1.11638,1792.4,1792.1,7.41212]
[1743774821635,1.11638,1792.4,1792.1,2.59412]
[1743774821839,1.1164,1792.4,1792.1,2.59412]
[1743774822230,3.2078,1792.6,1792.1,1.4776]
[1743774822436,3.2078,1792.6,1791.9,45.61938573]
[1743774822632,2.79046,1792.5,1792.0,1.4776]
[1743774822833,3.9248,1792.6,1792.0,1.4776]
[1743774823034,1.11623,1792.5,1792.3,1.1163]
[1743774823234,1.11622,1792.5,1792.3,1.11626]
[1743774823434,1.1162,1792.5,1792.3,1.11629]
[1743774823739,1.11627,1792.4,1792.2,1.11634]
[1743774824040,1.11622,1792.5,1792.2,3.2078]
[1743774824242,1.83315,1792.6,1792.4,3.2078]
[1743774824441,2.0995,1792.8,1792.5,1.5286]
[1743774824636,1.2973,1792.9,1792.8,1.11599]
[1743774824841,1.2973,1792.9,1792.8,4.32379]
[1743774825041,2.41323,1792.9,1792.8,1.11599]
[1743774825242,0.7389,1792.9,1792.5,7.52683]
[1743774825442,1.11599,1792.8,1792.6,1.11608]
[1743774825636,1.2973,1792.9,1792.5,7.52683]
[1743774825637,0.7389,1792.9,1792.5,7.52683]
[1743774825938,0.7389,1792.9,1792.5,4.7364]
[1743774826137,0.7389,1792.9,1792.8,1.11599]
[1743774826337,2.65697,1793.0,1792.9,1.11593]
[1743774826633,1.5411,1793.0,1792.9,1.11593]
[1743774826938,1.11597,1792.9,1792.7,2.64981]
[1743774827142,1.11599,1792.8,1792.7,1.5338]
[1743774827442,2.79008,1792.8,1792.3,4.32407]
[1743774827739,10.3112,1793.1,1792.5,3.2078]
[1743774827942,1.11605,1792.7,1792.6,1.5338]
[1743774828142,1.11605,1792.8,1792.7,1.11605]
[1743774828341,1.11605,1792.8,1792.6,1.5338]
[1743774828537,1.11605,1792.7,1792.6,1.5338]
[1743774828739,1.5082,1793.0,1792.6,1.5338]
[1743774829043,1.11592,1793.0,1792.8,1.11599]
[1743774829240,3.2078,1793.5,1792.9,2.78981]
[1743774829437,5.2744,1793.5,1792.9,4.7416]
[1743774829647,1.11574,1793.3,1793.2,1.11574]
[1743774829946,1.11566,1793.4,1793.0,3.21618573]
[1743774830140,1.5082,1793.5,1793.1,41.91576]
[1743774830445,1.11581,1793.1,1793.0,0.00838573]
[1743774830833,1.4587,1793.2,1793.0,0.00838573]
[1743774831138,0.7291,1793.3,1793.1,1.11579]
[1743774831345,2.1878,1793.3,1793.0,44.01618573]
[1743774831543,2.1878,1793.3,1793.0,40.80838573]
[1743774831733,1.11581,1793.1,1793.0,41.92424573]
[1743774832043,1.11581,1793.1,1793.0,40.80838573]
[1743774832549,1.11581,1793.1,1793.0,0.00838573]
[1743774834941,1.11624,1792.4,1792.3,3.2078]
[1743774835145,11.5358,1793.1,1791.2,5.966]
[1743774835146,3.2078,1792.7,1792.0,3.2078]
[1743774835444,1.1163,1792.3,1792.2,4.32413]
[1743774835650,2.7903,1792.6,1792.1,1.11639]
[1743774835651,1.11638,1792.2,1792.1,1.11639]
[1743774835943,1.11635,1792.3,1792.2,1.11635]
[1743774836140,1.1164,1792.2,1792.1,41.91641]
[1743774836349,1.12470573,1792.3,1792.2,1.11637]
[1743774836743,0.00838573,1792.3,1792.2,4.32417]
[1743774836949,0.00838573,1792.3,1792.2,5.05728219]
[1743774837248,1.12468573,1792.3,1792.2,1.84952802]
[1743774837745,1.11637,1792.2,1792.1,41.91639]
[1743774837947,0.00838573,1792.3,1792.1,0.73331435]
[1743774838247,0.00838573,1792.3,1792.0,0.00838573]
[1743774838443,0.00838573,1792.3,1792.2,1.11637]
[1743774838842,1.12468573,1792.3,1792.2,1.11637]
[1743774840339,1.11643,1792.1,1792.0,0.00838573]
[1743774840544,1.11677,1791.6,1791.4,1.11686]
[1743774840741,5.3066,1792.0,1791.4,3.24267143]
[1743774840942,1.11674,1791.6,1791.5,3.94153229]
[1743774841146,1.11675,1791.6,1791.4,1.11682]
[1743774841346,10.2176,1792.0,1791.3,3.2078]
[1743774841548,5.6151,1792.0,1791.5,3.2078]
[1743774841848,1.11647,1792.1,1791.6,11.63709025]
[1743774842041,1.3947,1792.2,1791.9,1.11652]
[1743774842242,5.99895,1792.1,1791.6,4.904]
[1743774842545,1.11649,1792.0,1791.9,40.8]
[1743774844150,2.79124,1792.0,1791.5,1.12516573]
[1743774844455,10.4712,1792.2,1791.6,1.4327]
[1743774844647,18.23315,1792.2,1791.8,1.1166]
[1743774844847,1.11649,1792.1,1791.9,1.11655]
[1743774845051,1.11662,1791.8,1791.7,40.8]
[1743774845454,4.7488,1792.0,1791.5,0.00838573]
[1743774845649,3.2078,1792.2,1791.5,0.00838573]
[1743774845845,3.2078,1792.0,1791.6,40.8]
[1743774846153,3.2078,1792.1,1791.6,40.8]
[1743774846353,1.11651,1792.0,1791.8,1.11658]
[1743774846555,1.11651,1792.0,1791.9,1.4008]
[1743774846749,4.32431,1792.0,1791.9,1.4008]
[1743774847158,3.2078,1792.0,1791.6,40.8]
[1743774847353,1.11665,1791.8,1791.7,1.4008]
[1743774847854,4.7488,1792.2,1791.6,40.8]
[1743774848158,4.7488,1792.2,1791.7,2.1355977]
[1743774848346,4.7488,1792.2,1791.7,1.4008]
[1743774848549,4.7488,1792.2,1791.7,4.6086]
[1743774848758,1.1166,1791.9,1791.7,2.51746]
[1743774849058,4.7488,1792.2,1791.8,1.1166]
[1743774849059,3.2078,1792.0,1791.8,1.1166]
[1743774849257,4.32429,1792.0,1791.9,1.4484]
[1743774849553,1.11649,1792.0,1791.9,1.4484]
[1743774850755,1.11649,1792.0,1791.7,1.11665]
[1743774850955,5.046,1792.2,1791.8,1.11662]
[1743774851156,1.11651,1792.0,1791.9,1.4627]
[1743774851457,1.11669,1791.7,1791.5,0.00838573]
[1743774851760,9.0358,1792.1,1791.6,2.79186]
[1743774851761,3.2078,1792.1,1791.6,2.79186]
[1743774851962,3.2078,1792.1,1791.7,1.4627]
[1743774852158,3.21618573,1792.3,1791.7,4.25431]
[1743774852363,1.11645,1792.1,1791.9,1.11655]
[1743774852555,2.63429,1792.2,1792.0,2.57917]
[1743774852863,2.63431,1792.2,1792.0,2.57919]
[1743774853155,2.63431,1792.2,1792.0,2.57916]
[1743774853361,1.5179,1792.2,1792.1,1.11643]
[1743774853561,1.11643,1792.1,1792.0,1.4627]
[1743774853751,2.6343,1792.2,1792.0,2.57919]
[1743774853952,0.00838573,1792.3,1792.2,1.11637]
[1743774854153,1.12468573,1792.3,1792.2,40.8]
[1743774854659,1.11643,1792.1,1792.0,1.4627]
[1743774855458,3.2078,1792.2,1791.8,1.11659]
[1743774855659,1.11653,1792.0,1791.9,1.4141]
[1743774855962,4.32433,1792.0,1791.9,1.4141]
[1743774856358,3.2078,1792.0,1791.7,1.11665]
[1743774856558,1.11674,1791.6,1791.5,0.00838573]
[1743774856759,1.11674,1791.6,1791.5,1.42248573]
[1743774857061,0.6951,1791.9,1791.5,1.42248573]
[1743774857261,1.11668,1791.7,1791.5,2.53925573]
[1743774857563,1.11674,1791.6,1791.5,0.00838573]
[1743774859354,1.11701,1791.2,1791.0,1.11708]
[1743774859555,1.5241,1791.5,1791.1,1.437]
[1743774859859,1.11693,1791.3,1791.1,4.6448]
[1743774860166,1.11693,1791.3,1791.2,1.437]
[1743774861073,0.00838573,1791.4,1791.3,1.11693]
[1743774861366,1.11693,1791.3,1791.2,1.437]
[1743774861553,4.33309573,1791.4,1791.2,1.437]
[1743774861755,1.11693,1791.3,1791.2,1.437]
[1743774862361,1.11693,1791.3,1791.2,42.237]
[1743774862798,2.61333,1791.3,1791.2,42.237]
[1743774862990,1.11699,1791.2,1791.1,0.00838573]
[1743774863282,1.11714,1791.0,1790.8,1.4552]
[1743774863493,1.11714,1791.0,1790.9,40.8]
[1743774864290,1.11707,1791.1,1790.9,40.8]
[1743774864491,1.4282,1791.1,1791.0,2.6014]
[1743774864684,1.4282,1791.1,1790.9,40.8]
[1743774864884,2.5453,1791.1,1790.9,1.11716]
[1743774865185,2.5453,1791.1,1791.0,1.4843]
[1743774865386,2.5453,1791.1,1791.0,42.2843]
[1743774865777,2.5453,1791.1,1791.0,40.8]
[1743774866998,4.636,1791.1,1790.1,0.2469]
[1743774867297,3.2078,1790.9,1790.5,1.4953]
[1743774867484,1.5058,1790.8,1790.5,1.4953]
[1743774867681,1.1172,1790.9,1790.7,1.11727]
[1743774868080,1.1172,1790.9,1790.8,1.4953]
[1743774868286,2.62298,1790.9,1790.8,1.4953]
[1743774868483,1.1173,1790.7,1790.6,0.00838573]
[1743774868784,1.5058,1790.9,1790.7,1.11728]
[1743774868982,2.62298,1790.9,1790.8,1.4953]
[1743774869184,0.7249,1791.0,1790.8,1.4953]
[1743774869378,1.11718,1790.9,1790.8,1.4953]
[1743774870073,2.59468,1790.9,1790.8,1.4953]
[1743774870372,2.59468,1790.9,1790.8,40.8]
[1743774870963,1.11718,1790.9,1790.8,40.8]
[1743774871567,2.59468,1790.9,1790.8,40.8]
[1743774872575,1.11718,1790.9,1790.8,40.8]
[1743774872871,1.11718,1790.9,1790.8,41.91724]
[1743774873266,1.11711,1791.1,1790.9,1.11713]
[1743774873473,7.42019,1791.2,1790.8,40.8]
[1743774873672,1.11718,1790.9,1790.8,40.8]
[1743774873877,1.11718,1790.9,1790.8,41.91724]
[1743774874072,1.11718,1790.9,1790.8,40.8]
[1743774874378,1.11757,1790.3,1790.1,5.072]
[1743774874674,1.11761,1790.2,1790.1,5.072]
[1743774874971,1.11794,1789.7,1789.5,8.2818]
[1743774875173,2.79435,1790.0,1789.5,8.2818]
[1743774875471,2.7948,1789.8,1789.4,1.11808]
[1743774875783,2.53053,1789.7,1789.6,0.00559057]
[1743774876076,1.11824,1789.2,1789.1,3.2078]
[1743774876468,1.11824,1789.2,1789.1,44.0078]
[1743774876870,1.1183,1789.1,1789.0,8.60910705]
[1743774877065,4.6204,1789.4,1789.0,12.93524705]
[1743774877271,1.11829,1789.2,1789.0,12.93524705]
[1743774877470,1.4126,1789.4,1789.0,9.72744705]
[1743774877667,1.1183,1789.1,1789.0,9.72744705]
[1743774877865,1.11828,1789.2,1789.0,9.72744705]
[1743774878173,1.1183,1789.1,1789.0,41.91836]
[1743774878379,1.1183,1789.1,1789.0,45.12616]
[1743774878676,1.1183,1789.1,1789.0,44.0078]
[1743774878878,1.1183,1789.1,1789.0,40.8]
[1743774879775,1.11855,1788.7,1788.6,6.17461]
[1743774879980,1.5366,1789.0,1788.6,6.17461]
[1743774880178,1.12687573,1788.8,1788.7,40.8]
[1743774881478,1.11868,1788.5,1788.4,3.2078]
[1743774881882,1.11868,1788.5,1788.4,41.91872]
[1743774882085,1.11868,1788.5,1788.4,40.8]
[1743774883277,1.11868,1788.5,1788.4,41.91874]
[1743774883584,1.11866,1788.6,1788.5,1.11867]
[1743774883778,1.11865,1788.6,1788.3,5.046]
[1743774883982,1.4487,1788.7,1788.4,3.2078]
[1743774884184,1.11868,1788.6,1788.5,41.91867]
[1743774884684,1.11858,1788.7,1788.6,1.11859]
[1743774884977,1.11856,1788.7,1788.6,1.11857]
[1743774885183,1.11859,1788.7,1788.6,1.11859]
[1743774885483,1.11859,1788.7,1788.6,41.91859]
[1743774885878,1.11859,1788.7,1788.6,40.8]
[1743774886080,1.11859,1788.7,1788.6,41.91861]
[1743774886477,1.11859,1788.7,1788.6,40.8]
[1743774887285,2.62199,1788.7,1788.6,40.8]
[1743774890082,1.1188,1788.4,1788.1,5.966]
[1743774890287,1.11884,1788.3,1788.2,1.11879]
[1743774890487,1.11884,1788.3,1788.2,41.91879]
[1743774890788,1.11884,1788.3,1788.2,40.8]
[1743774891482,1.11884,1788.3,1788.2,44.0078]
[1743774891684,1.11884,1788.3,1788.2,41.91886]
[1743774891888,1.11884,1788.3,1788.2,40.8]
[1743774892888,2.55004,1788.3,1788.2,40.8]
[1743774894086,1.11884,1788.3,1788.2,40.8]
[1743774894293,1.11884,1788.3,1788.2,41.91886]
[1743774894692,1.11884,1788.3,1788.2,43.33986]
[1743774895089,1.11884,1788.3,1788.2,42.221]
[1743774895485,1.11884,1788.3,1788.2,43.33986]
[1743774895882,0.00838573,1788.8,1788.3,2.79701]
[1743774896083,1.11861,1788.6,1788.5,4.32643]
[1743774896292,0.00838573,1788.8,1788.5,4.32642]
[1743774896489,1.11856,1788.7,1788.6,1.421]
[1743774896688,1.11855,1788.7,1788.6,1.421]